bitfinex/quotes_ETHUSD_20211001
["timestamp","ask_amount","ask_price","bid_price","bid_amount"]
[1633058237387,2.18944856,3005.0,3004.5,0.006]
[1633058237644,0.201,3005.2,3004.5,0.006]
[1633058238187,1.1834162,3005.2,3004.6,0.71190276]
[1633058238385,1.49201191,3004.8,3004.5,0.006]
[1633058238586,1.49201191,3004.8,3004.7,0.003]
[1633058239991,1.1834162,3005.2,3004.7,0.003]
[1633058240188,0.201,3005.2,3004.7,0.003]
[1633058240389,0.201,3005.2,3004.5,0.006]
[1633058240988,1.294,3004.9,3004.5,0.006]
[1633058241190,0.565,3005.0,3004.5,0.006]
[1633058241989,2.48423278,3004.9,3004.5,0.006]
[1633058242593,2.71078173,3004.9,3004.4,1.88879924]
[1633058242894,1.294,3004.7,3004.4,1.88879924]
[1633058243090,3.72078173,3004.9,3004.4,1.88879924]
[1633058243496,9.0,3004.8,3004.4,1.88879924]
[1633058243896,1.294,3004.6,3004.4,1.88879924]
[1633058244093,9.0,3004.8,3004.4,1.88879924]
[1633058244493,2.71078173,3004.9,3004.4,1.88879924]
[1633058244892,1.294,3004.7,3004.4,1.88879924]
[1633058245094,8.71555173,3004.9,3004.4,1.88879924]
[1633058245392,9.0,3004.8,3004.4,1.88879924]
[1633058245592,0.00102923,3004.8,3004.4,1.88879924]
[1633058246194,1.294,3004.6,3004.4,1.88879924]
[1633058246393,0.00102923,3004.8,3004.4,1.88879924]
[1633058247595,4.99571923,3004.8,3004.4,1.88879924]
[1633058248196,4.99571923,3004.8,3004.7,0.079913]
[1633058248197,0.00102923,3004.8,3004.7,0.079913]
[1633058248394,0.00102923,3004.8,3004.7,0.280913]
[1633058249795,0.00102923,3004.8,3004.7,0.72844699]
[1633058249996,0.00102923,3004.8,3004.7,1.72844699]
[1633058250196,0.00102923,3004.8,3004.7,1.64853399]
[1633058250696,0.00102923,3004.8,3004.7,1.201]
[1633058250897,0.00102923,3004.8,3004.7,0.201]
[1633058251497,0.00102923,3004.8,3004.7,1.92316574]
[1633058252298,0.00102923,3004.8,3004.7,5.19353]
[1633058252499,0.00102923,3004.8,3004.7,6.19353]
[1633058252901,0.00102923,3004.8,3004.7,7.48753]
[1633058253298,0.00102923,3004.8,3004.7,6.19353]
[1633058254099,0.00102923,3004.8,3004.7,5.19353]
[1633058254499,0.00102923,3004.8,3004.7,6.19353]
[1633058254900,0.00102923,3004.8,3004.7,5.19353]
[1633058255302,0.00102923,3004.8,3004.7,6.19353]
[1633058255500,0.00102923,3004.8,3004.7,5.19353]
[1633058256703,0.003,3005.5,3005.3,0.34950458]
[1633058256906,0.003,3006.0,3005.5,1.16716448]
[1633058257102,0.003,3006.0,3005.6,0.201]
[1633058257704,0.003,3006.0,3005.7,0.81055692]
[1633058257904,1.62781924,3005.9,3005.8,0.201]
[1633058258305,2.92181924,3005.9,3005.8,0.201]
[1633058258503,8.11816448,3005.4,3005.3,0.34950458]
[1633058258769,11.85976448,3005.4,3005.3,0.34950458]
[1633058258967,8.60240532,3005.4,3005.3,0.34950458]
[1633058259168,4.62516118,3005.4,3005.3,0.34950458]
[1633058259368,5.91916118,3005.4,3005.3,0.34950458]
[1633058259766,4.62516118,3005.4,3005.3,0.34950458]
[1633058259967,3.14356118,3005.4,3005.3,0.34950458]
[1633058260568,4.43756118,3005.4,3005.3,0.34950458]
[1633058260767,6.46022745,3005.4,3005.3,0.34950458]
[1633058260967,5.45022745,3005.4,3005.3,0.34950458]
[1633058261993,15.45022745,3005.4,3005.3,0.34950458]
[1633058262193,5.45022745,3005.4,3005.3,0.34950458]
[1633058262392,15.45022745,3005.4,3005.3,0.34950458]
[1633058266591,5.45022745,3005.4,3005.3,0.34950458]
[1633058266792,5.45127344,3005.4,3005.3,0.34950458]
[1633058267594,6.46127344,3005.4,3005.3,0.34950458]
[1633058267996,11.16727344,3005.4,3005.3,0.34950458]
[1633058268195,12.46127344,3005.4,3005.3,0.34950458]
[1633058268596,10.15727344,3005.4,3005.3,0.34950458]
[1633058268796,4.15727344,3005.4,3005.3,0.34950458]
[1633058268999,5.16727344,3005.4,3005.3,0.34950458]
[1633058269396,6.46127344,3005.4,3005.3,0.34950458]
[1633058269597,14.46127344,3005.4,3005.3,0.34950458]
[1633058269799,21.11971344,3005.4,3005.3,0.34950458]
[1633058270000,20.10971344,3005.4,3005.3,0.34950458]
[1633058270198,12.10971344,3005.4,3005.3,0.34950458]
[1633058270397,21.11971344,3005.4,3005.3,0.34950458]
[1633058270799,27.11971344,3005.4,3005.3,0.34950458]
[1633058271200,28.11971344,3005.4,3005.3,0.34950458]
[1633058271601,21.11971344,3005.4,3005.3,0.34950458]
[1633058272202,14.46127344,3005.4,3005.3,0.34950458]
[1633058272401,6.46127344,3005.4,3005.3,0.34950458]
[1633058273001,10.15727344,3005.4,3005.3,0.34950458]
[1633058273401,4.15727344,3005.4,3005.3,0.34950458]
[1633058273666,3.34560717,3005.4,3005.3,0.34950458]
[1633058273803,4.63960717,3005.4,3005.3,0.34950458]
[1633058274002,3.34560717,3005.4,3005.3,0.34950458]
[1633058274602,8.34560717,3005.4,3005.3,0.34950458]
[1633058275004,10.6061468,3005.4,3005.3,0.34950458]
[1633058275604,11.6061468,3005.4,3005.3,0.34950458]
[1633058275809,4.34560717,3005.4,3005.3,0.34950458]
[1633058276209,5.63960717,3005.4,3005.3,0.34950458]
[1633058276673,4.34560717,3005.4,3005.3,0.34950458]
[1633058276805,4.14620395,3005.4,3005.3,0.34950458]
[1633058277205,5.44020395,3005.4,3005.3,0.34950458]
[1633058277407,9.08209296,3005.4,3005.3,4.58e-06]
[1633058277608,9.08209296,3005.4,3004.7,0.003]
[1633058277609,9.70375696,3005.4,3004.7,0.003]
[1633058277807,7.85993597,3005.3,3004.7,0.003]
[1633058278007,0.201,3005.2,3004.5,0.006]
[1633058278207,5.19519,3005.2,3004.5,0.006]
[1633058278408,1.72787695,3004.8,3004.5,0.006]
[1633058278609,0.83076855,3004.7,3004.5,0.006]
[1633058278814,2.33666855,3004.7,3004.5,0.006]
[1633058279009,3.33666855,3004.7,3004.5,0.006]
[1633058279812,4.0,3004.6,3004.5,0.006]
[1633058280013,5.0,3004.6,3004.5,0.006]
[1633058280214,1.0,3004.6,3004.5,0.006]
[1633058280612,1.72787695,3004.8,3004.5,0.006]
[1633058281210,2.64054358,3004.8,3004.5,0.006]
[1633058282411,1.294,3004.7,3004.5,0.006]
[1633058282714,1.294,3004.7,3003.0,0.003]
[1633058282715,5.39830373,3004.1,3003.0,0.003]
[1633058282913,5.59930373,3004.1,3003.0,0.003]
[1633058283113,13.59930373,3004.1,3003.0,0.009]
[1633058283313,1.0,3004.0,3003.0,0.009]
[1633058283513,0.92534894,3003.3,3003.0,0.009]
[1633058283715,2.16854894,3003.3,3003.0,0.009]
[1633058284316,2.16854894,3003.3,3002.8,0.009]
[1633058284514,1.74537372,3003.0,3002.8,0.009]
[1633058284917,0.92534894,3003.3,3002.8,0.009]
[1633058285114,0.201,3003.9,3002.8,0.009]
[1633058285515,5.19739,3003.9,3002.9,4.99617]
[1633058285916,1.77218181,3003.1,3003.0,0.009]
[1633058286117,0.71760706,3003.4,3003.0,0.009]
[1633058286315,0.71760706,3003.4,3003.0,3.33979]
[1633058286716,0.71760706,3003.4,3003.1,0.006]
[1633058287316,1.74407582,3003.3,3003.1,0.006]
[1633058287517,1.74407582,3003.3,3003.1,5.00218]
[1633058287919,1.74407582,3003.3,3003.2,0.006]
[1633058289378,11.0,3003.7,3003.2,0.006]
[1633058289779,1.0,3003.8,3003.2,0.006]
[1633058289980,0.201,3003.9,3003.2,0.006]
[1633058290179,0.201,3003.9,3003.5,4.99543]
[1633058290380,2.47159815,3003.8,3003.5,4.99543]
[1633058290579,2.47159815,3003.8,3003.6,0.003]
[1633058290782,3.47159815,3003.8,3003.6,0.003]
[1633058290979,2.50434244,3003.8,3003.6,0.003]
[1633058291379,1.50434244,3003.8,3003.4,0.006]
[1633058292182,4.0,3003.7,3003.4,0.006]
[1633058292379,2.30198772,3003.8,3003.4,0.006]
[1633058292579,3.30198772,3003.8,3003.4,0.006]
[1633058293580,1.8706203,3003.7,3003.4,5.00173]
[1633058293783,3.30198772,3003.8,3003.4,5.00173]
[1633058293981,3.30198772,3003.8,3003.5,0.006]
[1633058294583,3.30198772,3003.8,3003.4,0.006]
[1633058294983,1.87135426,3003.7,3003.5,4.99562]
[1633058295183,1.87135426,3003.7,3003.4,0.006]
[1633058295383,2.87135426,3003.7,3003.6,0.003]
[1633058296986,7.87135426,3003.7,3003.6,0.003]
[1633058297384,7.87135426,3003.7,3003.0,0.009]
[1633058297584,1.870724,3003.6,3003.0,0.009]
[1633058297785,4.870724,3003.6,3003.0,0.009]
[1633058297985,1.87072583,3003.5,3003.0,0.009]
[1633058298187,1.0,3003.6,3003.0,0.009]
[1633058298586,1.87046075,3003.5,3003.0,0.009]
[1633058298787,4.99675,3003.6,3003.0,0.009]
[1633058300691,1.0,3003.7,3003.0,0.009]
[1633058300890,1.86994757,3003.6,3003.0,0.009]
[1633058301289,1.69107686,3003.1,3003.0,0.009]
[1633058301690,1.0,3003.6,3003.0,5.00507]
[1633058301888,0.87793341,3003.3,3003.1,3.33072]
[1633058302091,3.73795757,3003.9,3003.1,3.33672]
[1633058302289,1.86986858,3003.8,3003.2,0.006]
[1633058303089,0.88501207,3003.5,3003.2,0.006]
[1633058306292,1.08601207,3003.5,3003.2,0.006]
[1633058307095,1.08601207,3003.5,3002.5,0.003]
[1633058307096,0.91065821,3002.9,3002.5,0.003]
[1633058307297,2.461228,3002.8,3002.5,0.003]
[1633058307495,2.461228,3002.8,3002.3,0.003]
[1633058307693,3.461228,3002.8,3001.6,0.006]
[1633058307899,1.73022252,3001.7,3001.6,0.006]
[1633058308097,3.11142252,3001.7,3001.6,6.29826]
[1633058308293,3.11142252,3001.7,3001.6,3.33828]
[1633058309094,1.3812,3001.7,3001.6,3.33828]
[1633058309294,3.11271526,3002.1,3001.6,3.33828]
[1633058309494,0.7919996,3002.1,3001.6,3.33828]
[1633058309694,0.7919996,3002.1,3001.7,0.006]
[1633058309897,0.201,3002.3,3001.7,0.006]
[1633058310096,0.201,3002.3,3001.8,1.60608227]
[1633058310494,0.201,3002.3,3001.6,3.28828]
[1633058310894,1.08121683,3002.3,3001.6,3.28828]
[1633058311097,1.08121683,3002.3,3001.9,4.99763]
[1633058311098,0.201,3002.3,3001.9,4.99763]
[1633058311493,1.79435468,3002.2,3001.9,4.99763]
[1633058311695,0.201,3002.3,3001.6,3.28828]
[1633058311894,0.201,3002.3,3001.7,3.33184]
[1633058312094,0.201,3002.3,3001.9,0.74891732]
[1633058313094,1.58675513,3002.0,3001.9,0.74891732]
[1633058313296,1.58675513,3002.0,3001.7,3.33184]
[1633058314498,0.76364898,3001.9,3001.7,3.23184]
[1633058315397,1.58675513,3002.0,3001.7,3.23184]
[1633058320205,1.58675513,3002.0,3001.7,3.13184]
[1633058322002,1.58675513,3002.0,3001.7,3.120233]
[1633058322403,1.58675513,3002.0,3001.7,3.10858613]
[1633058322806,1.58675513,3002.0,3001.6,4.0413164]
[1633058324205,1.58675513,3002.0,3001.6,3.7913164]
[1633058325005,1.58675513,3002.0,3001.6,3.03828]
[1633058326006,0.007724,3001.9,3001.6,3.03828]
[1633058326208,0.007724,3001.9,3001.7,0.93180442]
[1633058327506,0.007724,3001.9,3001.7,0.88180442]
[1633058327909,0.02,3001.8,3001.7,0.88180442]
[1633058329109,0.02,3001.8,3001.7,0.87408042]
[1633058331409,0.03233983,3001.8,3001.7,0.87408042]
[1633058331612,0.003,3003.0,3002.2,2.12173493]
[1633058331811,0.003,3003.0,3002.3,4.99661]
[1633058331812,0.91065821,3002.9,3002.3,4.99661]
[1633058332411,0.91065821,3002.9,3002.4,0.95813915]
[1633058332412,1.86290129,3002.9,3002.4,0.95813915]
[1633058332613,1.49982536,3002.5,3002.4,0.95813915]
[1633058332812,1.49982536,3002.5,3002.4,5.95509915]
[1633058333414,1.49982536,3002.5,3002.4,4.99696]
[1633058333614,1.49982536,3002.5,3002.3,3.331155]
[1633058334415,1.49982536,3002.5,3002.3,4.17206704]
[1633058334615,0.003,3002.5,3002.3,4.17206704]
[1633058335214,0.003,3002.5,3002.4,4.99695]
[1633058335819,0.003,3002.5,3002.3,0.84091204]
[1633058339422,0.003,3002.5,3002.3,5.83797204]
[1633058341822,0.003,3002.5,3002.3,5.83411804]
[1633058342821,0.003,3002.5,3002.4,10.044]
[1633058343022,0.003,3002.5,3002.4,16.24089]
[1633058343221,0.91065821,3002.9,3002.4,7.49089]
[1633058343420,0.91065821,3002.9,3002.5,0.079913]
[1633058343624,0.91065821,3002.9,3002.5,0.280913]
[1633058343825,0.91065821,3002.9,3002.6,1.69640448]
[1633058344022,0.91065821,3002.9,3002.8,0.81725695]
[1633058344225,0.91065821,3002.9,3002.8,5.81268695]
[1633058348026,0.003,3003.0,3002.8,5.80881595]
[1633058350623,0.77238742,3003.1,3002.8,9.13919595]
[1633058350825,0.77238742,3003.1,3002.9,3.330373]
[1633058351424,0.77238742,3003.1,3002.9,4.678673]
[1633058352025,0.77238742,3003.1,3002.9,8.009053]
[1633058352626,0.77238742,3003.1,3003.0,4.99556]
[1633058372046,0.77238742,3003.1,3003.0,8.26146]
[1633058372250,0.77238742,3003.1,3003.0,7.96746]
[1633058372547,0.003,3003.5,3003.1,0.77238742]
[1633058372747,0.003,3004.0,3003.4,0.079913]
[1633058372947,0.003,3004.0,3003.9,0.079913]
[1633058373147,0.003,3004.0,3003.9,1.534713]
[1633058374550,0.003,3004.0,3003.9,6.527983]
[1633058375807,0.003,3004.0,3003.9,7.821983]
[1633058376008,0.003,3004.0,3003.9,11.26691155]
[1633058376213,0.003,3004.0,3003.9,9.022983]
[1633058377414,0.003,3004.0,3003.9,7.728983]
[1633058386021,1.88879924,3004.4,3004.0,8.7]
[1633058386220,1.88879924,3004.4,3004.3,0.079913]
[1633058386421,1.88879924,3004.4,3004.3,5.273533]
[1633058386822,1.88879924,3004.4,3004.3,6.273533]
[1633058387021,1.88879924,3004.4,3004.3,8.68669938]
[1633058389427,1.88879924,3004.4,3004.3,6.273533]
[1633058389727,3.18279924,3004.4,3003.7,0.201]
[1633058389929,1.88879924,3004.4,3003.7,0.201]
[1633058390329,1.88879924,3004.4,3003.7,5.19536]
[1633058390528,0.76653677,3004.3,3003.7,5.91686303]
[1633058390728,0.76653677,3004.3,3003.7,10.68267788]
[1633058390729,1.99983682,3004.1,3003.7,10.68267788]
[1633058390928,1.88879924,3004.4,3003.7,5.68831788]
[1633058392131,1.9086313,3004.1,3003.7,5.68831788]
[1633058392329,1.9086313,3004.1,3003.8,3.32943]
[1633058392932,1.88879924,3004.4,3003.8,3.32943]
[1633058393130,1.88879924,3004.4,3004.0,3.32932]
[1633058393530,1.294,3004.2,3004.0,3.32932]
[1633058393732,1.88879924,3004.4,3004.0,3.32932]
[1633058393932,1.58676136,3004.3,3004.0,3.32932]
[1633058394732,2.43261361,3004.3,3004.0,3.32932]
[1633058396730,0.84585225,3004.3,3004.0,3.32932]
[1633058396931,1.88879924,3004.4,3004.0,3.32932]
[1633058397731,1.88879924,3004.4,3004.0,8.32315]
[1633058397932,1.294,3004.2,3004.0,3.32932]
[1633058398134,1.88879924,3004.4,3004.0,3.32932]
[1633058399334,1.75379924,3004.4,3004.0,3.32932]
[1633058399736,0.75290677,3004.1,3004.0,3.32932]
[1633058400137,1.75379924,3004.4,3003.7,0.92250303]
[1633058400336,4.99493,3004.2,3003.7,0.92250303]
[1633058400536,1.75379924,3004.4,3003.7,0.92250303]
[1633058400737,1.75379924,3004.4,3003.7,1.00241603]
[1633058400936,1.75379924,3004.4,3003.7,0.92250303]
[1633058401338,1.00414678,3004.2,3003.7,0.201]
[1633058402535,5.99908678,3004.2,3003.7,0.201]
[1633058402736,1.60807721,3004.0,3003.7,1.64343194]
[1633058402937,1.60807721,3004.0,3003.7,0.201]
[1633058403135,1.294,3003.9,3003.7,0.201]
[1633058403339,1.60807721,3004.0,3003.5,3.3329]
[1633058405136,0.83786978,3003.6,3003.5,3.3329]
[1633058405339,1.60807721,3004.0,3003.5,3.3329]
[1633058405538,6.60325721,3004.0,3003.5,3.3329]
[1633058406340,0.84984632,3003.8,3003.5,3.3329]
[1633058406939,1.60807721,3004.0,3003.5,3.3329]
[1633058406940,1.60807721,3004.0,3003.7,1.63575803]
[1633058407139,1.75379924,3004.4,3003.5,3.410046]
[1633058407339,1.75379924,3004.4,3003.5,3.3329]
[1633058407340,1.85998847,3004.3,3003.5,3.3329]
[1633058407638,1.85998847,3004.3,3003.8,4.99436]
[1633058407841,1.75379924,3004.4,3003.8,4.99436]
[1633058408039,1.75379924,3004.4,3004.1,0.90917806]
[1633058408241,1.67348638,3004.3,3004.1,4.23849806]
[1633058408641,1.67348638,3004.3,3004.1,3.32932]
[1633058408840,1.75379924,3004.4,3004.1,3.32932]
[1633058409040,1.86044026,3004.3,3004.1,3.32932]
[1633058409840,3.83100735,3004.3,3004.1,3.32932]
[1633058410040,1.86074813,3004.2,3004.1,3.32932]
[1633058410642,3.15474813,3004.2,3003.7,3.32982]
[1633058410843,1.86116133,3004.1,3003.7,0.201]
[1633058411043,4.99522,3004.1,3003.7,0.201]
[1633058411242,1.93328374,3003.8,3003.7,0.201]
[1633058411443,1.93328374,3003.8,3003.4,1.64885408]
[1633058411642,1.93328374,3003.8,3003.6,0.88229764]
[1633058411843,2.32809246,3004.4,3003.7,0.079913]
[1633058412044,1.86164442,3004.3,3004.0,0.079913]
[1633058412243,1.86164442,3004.3,3004.0,5.073753]
[1633058412443,1.86164442,3004.3,3003.7,0.201]
[1633058412642,0.57444141,3004.2,3003.7,0.201]
[1633058413045,1.86216391,3004.1,3003.5,3.33305]
[1633058413244,1.86226676,3004.0,3003.5,3.33305]
[1633058413443,1.86259083,3003.9,3003.5,3.33305]
[1633058413645,0.76980697,3003.7,3003.5,3.33305]
[1633058414045,1.86267098,3003.6,3003.5,0.003]
[1633058414243,0.76980697,3003.7,3003.1,0.76374042]
[1633058414443,1.8628921,3003.6,3003.1,0.76374042]
[1633058414844,1.423672,3003.4,3003.1,0.76374042]
[1633058415044,0.201,3003.8,3003.1,6.70646251]
[1633058415244,1.862958,3003.7,3003.1,6.70646251]
[1633058415846,1.862958,3003.7,3003.3,3.33005]
[1633058416045,1.84193501,3003.5,3003.3,3.33005]
[1633058417048,1.84193501,3003.5,3003.1,4.09430042]
[1633058420852,1.84193501,3003.5,3003.2,8.32569]
[1633058421251,1.84193501,3003.5,3003.2,3.33028]
[1633058424058,1.84193501,3003.5,3003.1,4.09430042]
[1633058424059,6.83800501,3003.5,3003.1,4.09430042]
[1633058425259,6.83800501,3003.5,3003.3,0.01320559]
[1633058425459,4.99607,3003.5,3003.3,0.01320559]
[1633058425661,2.98869569,3003.9,3003.3,0.01320559]
[1633058425662,0.57477289,3003.9,3003.3,0.01320559]
[1633058425859,1.86376,3003.8,3003.3,0.01320559]
[1633058426064,1.86375031,3003.7,3003.3,0.01320559]
[1633058426260,0.003,3004.0,3003.3,0.01320559]
[1633058426459,1.83793859,3003.7,3003.3,0.01320559]
[1633058426861,1.83793859,3003.7,3003.5,3.32994]
[1633058427060,1.8638645,3003.6,3003.5,3.32994]
[1633058428061,0.57805567,3004.0,3003.5,3.32994]
[1633058428662,2.44206161,3004.0,3003.5,3.32994]
[1633058428864,1.68524465,3003.7,3003.5,3.32994]
[1633058429064,1.86400912,3003.6,3003.5,3.32994]
[1633058430664,1.86400912,3003.6,3003.3,0.01320559]
[1633058430864,3.39574642,3003.5,3003.3,0.01320559]
[1633058431064,4.08246465,3003.4,3003.3,0.01320559]
[1633058431265,2.8642824,3003.4,3003.3,0.01320559]
[1633058432064,9.73035487,3003.4,3003.3,0.01320559]
[1633058434468,0.76374042,3003.1,3002.6,0.003]
[1633058434665,1.86394616,3003.0,3002.6,0.003]
[1633058434869,1.86394616,3003.0,3002.5,0.006]
[1633058435728,7.58582218,3002.9,3002.5,0.006]
[1633058437073,6.0,3002.8,3002.5,0.006]
[1633058438472,6.0,3002.8,3002.6,1.97644822]
[1633058438872,6.0,3002.8,3002.7,0.003]
[1633058439072,1.58844323,3002.9,3002.7,0.003]
[1633058440473,2.31512952,3002.9,3002.7,0.003]
[1633058440673,2.31512952,3002.9,3002.5,0.006]
[1633058440875,1.58844323,3002.9,3002.5,0.006]
[1633058441074,0.76374042,3003.1,3002.5,0.006]
[1633058441275,0.76374042,3003.1,3002.6,0.079913]
[1633058441736,5.76045042,3003.1,3002.7,0.003]
[1633058442078,1.64648631,3002.8,3002.7,0.003]
[1633058442879,1.64648631,3002.8,3002.5,0.006]
[1633058445879,1.64648631,3002.8,3002.5,3.3368864]
[1633058446079,1.64648631,3002.8,3002.6,4.99633]
[1633058446279,1.64648631,3002.8,3002.6,0.9632598]
[1633058446479,1.64648631,3002.8,3002.7,0.003]
[1633058447482,1.64648631,3002.8,3002.6,0.003]
[1633058447680,1.65274335,3003.1,3002.6,0.003]
[1633058448087,6.64916335,3003.1,3002.6,0.003]
[1633058448481,6.64916335,3003.1,3002.5,0.006]
[1633058448683,6.64916335,3003.1,3002.3,0.006]
[1633058449283,1.52897334,3002.4,3002.3,0.006]
[1633058450087,1.52897334,3002.4,3002.2,0.006]
[1633058450787,1.52897334,3002.4,3002.2,1.01143314]
[1633058451185,1.52897334,3002.4,3002.3,0.006]
[1633058451586,1.52897334,3002.4,3002.2,0.006]
[1633058452189,4.22472027,3002.3,3002.2,0.006]
[1633058452386,4.42572027,3002.3,3002.2,0.006]
[1633058452589,3.37250902,3002.3,3002.2,0.006]
[1633058453186,1.201,3002.3,3002.2,0.006]
[1633058453586,1.495,3002.3,3002.2,0.006]
[1633058453787,6.19892,3002.3,3002.2,0.006]
[1633058453988,6.19892,3002.3,3001.5,1.68788648]
[1633058453989,5.19892,3002.3,3001.6,0.009]
[1633058454188,5.19892,3002.3,3001.9,0.89565808]
[1633058454189,7.23826547,3002.3,3001.9,0.89565808]
[1633058454587,5.19892,3002.3,3002.0,0.009]
[1633058456587,5.19892,3002.3,3001.5,0.012]
[1633058456789,1.64211452,3001.7,3001.5,0.012]
[1633058457191,1.64211452,3001.7,3001.6,0.74621383]
[1633058457588,1.64211452,3001.7,3001.6,0.75521383]
[1633058459589,4.99876,3001.9,3001.6,0.75521383]
[1633058459790,6.86582,3002.3,3001.6,0.75521383]
[1633058459992,6.86582,3002.3,3001.7,0.009]
[1633058460589,1.45636353,3002.2,3001.7,0.009]
[1633058460793,1.65736353,3002.2,3001.7,0.009]
[1633058462189,6.65561353,3002.2,3001.7,0.009]
[1633058462390,6.65561353,3002.2,3001.5,0.012]
[1633058462991,0.76685485,3001.6,3001.5,0.012]
[1633058463591,2.44207767,3001.6,3001.5,0.012]
[1633058464191,2.44207767,3001.6,3000.9,0.015]
[1633058464391,4.99948,3001.4,3000.9,0.015]
[1633058464591,4.99948,3001.4,3000.9,0.7898663]
[1633058464792,1.89720407,3001.0,3000.9,0.7898663]
[1633058464991,1.89720407,3001.0,3000.9,0.7748663]
[1633058465191,1.89720407,3001.0,3000.9,0.7898663]
[1633058465392,4.99948,3001.4,3000.9,0.7898663]
[1633058465849,4.99948,3001.4,3001.0,0.015]
[1633058466252,1.97599233,3001.3,3001.0,0.015]
[1633058467250,0.201,3001.8,3001.0,1.76309393]
[1633058467454,10.8091,3001.9,3001.1,4.18806421]
[1633058467650,5.19929,3002.2,3001.4,4.9981]
[1633058468050,5.19929,3002.2,3001.5,0.012]
[1633058468251,0.85401026,3001.9,3001.5,0.012]
[1633058468450,0.85401026,3001.9,3001.4,0.012]
[1633058468856,0.85401026,3001.9,3001.2,0.012]
[1633058469456,1.69096399,3001.4,3001.2,0.012]
[1633058469657,1.69096399,3001.4,3001.3,0.85144046]
[1633058470055,1.69096399,3001.4,3001.3,0.86344046]
[1633058470458,1.69096399,3001.4,3001.3,0.012]
[1633058470655,4.99919,3001.6,3001.3,0.012]
[1633058470858,0.85401026,3001.9,3001.2,0.012]
[1633058471461,0.85401026,3001.9,3001.2,0.82437854]
[1633058471856,5.85276026,3001.9,3001.3,0.012]
[1633058472058,1.92877617,3001.8,3001.3,0.012]
[1633058473056,4.99922,3001.6,3001.3,0.012]
[1633058473256,4.99922,3001.6,3001.2,0.012]
[1633058473858,1.79516577,3001.3,3001.2,0.91579883]
[1633058476258,1.79516577,3001.3,3001.2,0.012]
[1633058476658,1.79516577,3001.3,3001.0,0.015]
[1633058477259,1.79516577,3001.3,3001.0,0.95101627]
[1633058477660,1.79516577,3001.3,3001.1,0.012]
[1633058479662,1.79516577,3001.3,3001.0,0.90101627]
[1633058480861,1.79516577,3001.3,3001.0,0.85101627]
[1633058481062,1.79516577,3001.3,3000.9,0.201]
[1633058482061,1.79516577,3001.3,3001.0,0.84619514]
[1633058483464,1.79516577,3001.3,3000.9,0.201]
[1633058484468,0.89175733,3001.1,3000.9,0.201]
[1633058486864,1.79516577,3001.3,3000.9,0.201]
[1633058487265,1.79516577,3001.3,3000.8,7.556017]
[1633058488264,1.79516577,3001.3,3000.9,0.71265739]
[1633058488664,1.79516577,3001.3,3000.9,5.71169739]
[1633058489866,1.79516577,3001.3,3000.9,0.71265739]
[1633058491267,1.79516577,3001.3,3000.8,2.556717]
[1633058492270,6.79470577,3001.3,3000.8,2.556717]
[1633058492669,1.79516577,3001.3,3000.8,2.556717]
[1633058493269,6.79490577,3001.3,3000.8,2.48]
[1633058494068,0.88975984,3001.0,3000.8,2.48]
[1633058494271,5.89006984,3001.0,3000.8,2.48]
[1633058495269,5.89006984,3001.0,3000.5,0.003]
[1633058496071,5.89006984,3001.0,3000.3,0.77581335]
[1633058496274,5.89006984,3001.0,3000.4,0.003]
[1633058497069,6.09106984,3001.0,3000.4,0.003]
[1633058497269,1.0,3000.9,3000.4,0.003]
[1633058497472,0.201,3000.8,3000.1,0.77671196]
[1633058497669,0.201,3000.8,3000.2,0.003]
[1633058497871,5.00162,3000.5,3000.2,0.003]
[1633058498077,6.13785379,3000.5,3000.2,0.003]
[1633058498271,6.13785379,3000.5,3000.1,0.003]
[1633058498875,5.20262,3000.5,3000.1,0.003]
[1633058499070,1.63531594,3000.2,3000.1,0.003]
[1633058499874,1.63531594,3000.2,3000.0,0.006]
[1633058500673,1.0,3000.7,3000.0,0.006]
[1633058500874,0.201,3000.9,3000.0,0.006]
[1633058501075,0.201,3000.9,3000.1,0.77329143]
[1633058501473,5.96700029,3000.9,3000.4,0.86880519]
[1633058501676,1.65349146,3000.8,3000.4,0.86880519]
[1633058501873,1.65349146,3000.8,3000.5,0.003]
[1633058501874,2.65349146,3000.8,3000.5,0.003]
[1633058502078,1.65349146,3000.8,3000.5,0.003]
[1633058502277,2.65349146,3000.8,3000.5,0.003]
[1633058502675,11.3895,3001.2,3000.5,1.1675]
[1633058502875,0.003,3001.5,3000.7,0.079913]
[1633058503074,0.003,3001.5,3001.0,0.079913]
[1633058503674,1.75342086,3001.4,3001.2,0.93066737]
[1633058503874,0.003,3001.5,3001.3,2.21465809]
[1633058504074,0.003,3001.5,3001.4,10.195]
[1633058504473,0.003,3002.0,3001.4,11.66993242]
[1633058504678,0.003,3002.0,3001.9,8.779913]
[1633058504874,0.003,3002.0,3001.9,12.75115136]
[1633058505077,0.003,3002.0,3001.9,17.74725136]
[1633058505277,0.003,3002.0,3001.9,20.04125136]
[1633058505674,0.003,3002.0,3001.9,20.02959243]
[1633058506274,0.003,3002.0,3001.9,18.28553847]
[1633058506677,0.003,3002.0,3001.9,6.81164718]
[1633058506875,0.003,3002.0,3001.7,3.33084]
[1633058506876,0.00772,3001.9,3001.7,3.33084]
[1633058507675,2.0184589,3001.8,3001.4,2.48]
[1633058507876,2.0184589,3001.8,3001.4,3.48373163]
[1633058508076,2.0184589,3001.8,3001.4,2.48]
[1633058508281,0.011659,3001.7,3001.4,2.48]
[1633058508476,5.010899,3001.7,3001.4,2.48]
[1633058509478,2.0184589,3001.8,3001.4,2.48]
[1633058509677,0.00772,3001.9,3001.7,7.05236183]
[1633058509880,0.00772,3001.9,3001.8,1.294]
[1633058510078,0.00772,3001.9,3001.7,0.95236183]
[1633058510676,0.00772,3001.9,3001.7,1.93956693]
[1633058511278,0.00772,3001.9,3001.7,0.95236183]
[1633058511679,0.019379,3001.9,3001.7,0.95236183]